[Event "10th Amsterdam Science Park 2022"]
[Site "Amsterdam"]
[Date "2022.07.20"]
[Round "3.10"]
[White "Tan, Kevin"]
[Black "Kanis, Sierk"]
[Result "1/2-1/2"]
[ECO "A56"]
[WhiteElo "2209"]
[BlackElo "1985"]
[Annotator "TA"]
[PlyCount "78"]
[EventDate "2022.07.18"]
[EventCountry "NED"]
[SourceTitle "playchess.com"]
[Source "ChessBase"]
[SourceQuality "1"]
[TimeControl "5400+30"]

{[%evp 9,78,-40,-25,-22,-30,-14,-19,-29,-25,-29,-16,-19,-17,-42,-21,-16,0,-7,11,25,3,8,12,0,15,21,21,33,66,19,15,24,29,34,126,104,237,256,255,253,232,241,382,377,389,389,389,375,373,368,374,304,304,304,304,270,270,115,90,76,73,18,67,-30,-22,-25,-8,-53,0,0,0]} 1. d4 {[%emt 0:00:05]} Nf6 {[%emt 0:00:09]} 2. c4 {[%emt 0:00:42]} c5 {[%emt 0:00:06]} 3. e3 {[%emt 0:03:47]} g6 {[%emt 0:01:18]} 4. g3 {[%emt 0:14:01]} Bg7 {[%emt 0:02:28]} 5. Bg2 {[%emt 0:01:47]} cxd4 {[%emt 0:02:31]} 6. exd4 {[%emt 0:00:48] A56: Czech Benoni.} d5 {[%emt 0:00:59]} 7. Nc3 {[%emt 0:08:29][%cal Rc3d5]} dxc4 {[%emt 0:07:56]} 8. Qa4+ {[%emt 0:02:30]} Nbd7 {[%emt 0:06:16]} 9. Nf3 {[%emt 0:12:20]} O-O {[%emt 0:01:16]} 10. Qxc4 {[%emt 0:00:18]} Nb6 {[%emt 0:01:38]} 11. Qe2 {[%emt 0:02:53] [#]} Bg4 $146 {[%emt 0:01:54]} ({Predecessor:} 11... Be6 12. O-O Bc4 13. Qd1 Bxf1 14. Qxf1 Nfd5 15. Bd2 Rc8 16. Ne5 Nxc3 17. Bxc3 Nd5 {0-1 (34) Tomitz,H (2102)-Kavcic,Z (2290) St Veit 2008}) 12. O-O {[%emt 0:01:19]} Qd7 {[%emt 0:07:07]} 13. Re1 {[%emt 0:01:50]} Bxf3 {[%emt 0:05:38]} 14. Qxf3 {[%emt 0:02:01]} e6 {[%emt 0:06:57]} 15. Qxb7 {[%emt 0:06:59]} Qxd4 {[%emt 0:03:25]} 16. Bf4 {[%emt 0:01:54]} Qb4 {[%emt 0:06:36]} (16... Ng4 17. Qf3 Nh6 18. Red1 $16) 17. Re2 {[%emt 0:05:11]} Rfd8 {[%emt 0:11:06]} 18. Rc1 {[%emt 0:04:40]} h6 {[%emt 0:12:16]} 19. Rec2 {[%emt 0:05:07] White is more active.} (19. Bc6 $1 $14 {was preferrable.}) 19... Rd7 $11 {[%emt 0:02:38]} 20. Qa6 $36 {[%emt 0:00:47][%mdl 2048] White has some pressure.} Nfd5 {[%emt 0:02:53]} 21. Nxd5 {[%emt 0:01:26]} exd5 {[%emt 0:00:07]} ({Better is} 21... Nxd5 $14 22. Bd2 (22. Rc8+ Rd8 $14) 22... Qe7) 22. Bd2 $16 {[%emt 0:07:12] A strong pair of Bishops.} Qa4 {[%emt 0:03:48]} (22... Qg4 $16 {might work better.}) 23. Qxa4 $18 {[%emt 0:05:17]} Nxa4 {[%emt 0:01:04]} 24. b3 {[%emt 0:00:10]} Nb6 {[%emt 0:00:04] [#] Against Rc8+} 25. a4 $1 {[%emt 0:00:14] Black must now prevent a5.} a5 {[%emt 0:05:17]} (25... Rdd8 {was called for.} 26. Be3 Rab8) 26. Rc5 {[%emt 0:01:10]} Rda7 {[%emt 0:01:39]} 27. Rb5 {[%emt 0:00:31]} Ra6 {[%emt 0:00:31]} 28. Rc6 {[%emt 0:01:40]} Bd4 {[%emt 0:02:50]} 29. Bxh6 {[%emt 0:00:43]} Re8 {[%emt 0:00:07]} 30. Be3 {[%emt 0:00:43]} (30. Bxd5 Nxd5 31. Rxa6 Nc7 32. Raxa5 Nxb5 33. Rxb5 Re1+ 34. Kg2 Re2 $18) 30... Bxe3 {[%emt 0:01:13]} 31. fxe3 {[%emt 0:00:02]} Re6 {[%emt 0:00:22]} 32. Rbc5 {[%emt 0:02:55] Rxe6 is the strong threat.} Nd7 {[%emt 0:01:22] [#]} 33. Rc8+ {[%emt 0:07:29]} ({Avoid the trap} 33. Rxd5 $2 Raxc6 34. Rxd7 Rc1+ 35. Kf2 Rf6+ 36. Ke2 Rc2+ 37. Kd3 (37. Rd2 $2 Rxd2+ 38. Kxd2 Rf2+ 39. Kc3 Rxg2 $19) 37... Rxg2 $19) (33. Rxa6 $1 $18 {and the rest is easy.} Rxa6 34. Rxd5) 33... Kg7 $16 {[%emt 0:00:15]} 34. R5c7 {[%emt 0:00:00]} ({Much worse is} 34. Rxd5 $6 Nb6 35. Rc7 Nxd5 36. Bxd5 Rxe3 $11) 34... Nf6 {[%emt 0:00:28]} 35. Rb8 {[%emt 0:00:00]} (35. Rc3 $16) 35... Rab6 {[%emt 0:00:10]} (35... Rad6 $11) 36. Rbb7 {[%emt 0:00:00]} (36. Rxb6 $14 Rxb6 37. Rc3) 36... Rxb7 $11 {[%emt 0:00:13]} 37. Rxb7 {[%emt 0:00:00]} Rxe3 {[%emt 0:00:25]} 38. b4 {[%emt 0:01:13]} axb4 {[%emt 0:00:28]} (38... Rb3 $15 39. b5 d4) 39. Rxb4 {[%emt 0:00:05]} Ra3 {[%emt 0:01:19] Black escapes into a draw.  Weighted Error Value: White=0.22 (precise) /Black=0.17 (very precise)} 1/2-1/2

[Event "10th Amsterdam Science Park 2022"]
[Site "Amsterdam"]
[Date "2022.07.21"]
[Round "4.1"]
[White "Croese, Cor"]
[Black "Van Delft, Merijn"]
[Result "0-1"]
[ECO "B91"]
[WhiteElo "2173"]
[BlackElo "2383"]
[Annotator "ChessBase"]
[PlyCount "108"]
[EventDate "2022.07.18"]
[EventCountry "NED"]
[SourceTitle "playchess.com"]
[Source "ChessBase"]
[SourceQuality "1"]
[TimeControl "5400+30"]

1. e4 {[%emt 0:00:02]} c5 {[%emt 0:00:14]} 2. Nf3 {[%emt 0:00:06]} d6 {[%emt 0:00:06]} 3. d4 cxd4 {[%emt 0:00:08]} 4. Nxd4 {[%emt 0:00:11]} Nf6 {[%emt 0:00:08]} 5. Nc3 {[%emt 0:00:07]} a6 {[%emt 0:00:05]} 6. g3 {[%emt 0:00:06]} e5 {[%emt 0:00:17]} 7. Nde2 {[%emt 0:00:06]} Be7 {[%emt 0:00:14]} 8. Bg2 {[%emt 0:00:06]} O-O {[%emt 0:00:32]} 9. O-O {[%emt 0:00:09]} Be6 {[%emt 0:00:10]} 10. a4 {[%emt 0:00:34]} Nbd7 {[%emt 0:00:48]} 11. b3 {[%emt 0:00:21]} Rc8 {[%emt 0:00:46]} 12. h3 {[%emt 0:00:20]} Re8 {[%emt 0:00:53]} 13. Be3 {[%emt 0:01:21]} Qa5 {[%emt 0:03:43]} 14. Qd2 {[%emt 0:06:25]} Bd8 {[%emt 0:00:12]} 15. f4 {[%emt 0:14:06]} Nf8 {[%emt 0:04:34]} 16. f5 {[%emt 0:04:21]} Bd7 {[%emt 0:00:39]} 17. Rfd1 {[%emt 0:10:55]} h5 {[%emt 0:07:16]} 18. Bf3 {[%emt 0:05:50]} Bb6 {[%emt 0:07:37]} 19. Bxb6 {[%emt 0:01:37]} Qxb6+ {[%emt 0:00:08]} 20. Kg2 {[%emt 0:00:14]} Bxf5 {[%emt 0:08:16]} 21. a5 {[%emt 0:09:27]} Qc5 {[%emt 0:12:26]} 22. Qxd6 {[%emt 0:03:52]} Bg6 {[%emt 0:06:21]} 23. Qxc5 {[%emt 0:22:20]} Rxc5 {[%emt 0:00:11]} 24. Kf2 {[%emt 0:00:32]} Ne6 {[%emt 0:04:20]} 25. Ke3 {[%emt 0:01:27]} Nd4 {[%emt 0:02:38]} 26. Ra2 {[%emt 0:03:51]} Rec8 {[%emt 0:07:26]} 27. Rd3 {[%emt 0:00:07]} Nc6 {[%emt 0:11:16]} 28. Ra4 {[%emt 0:05:35]} Nxa5 {[%emt 0:03:05]} 29. Nd5 {[%emt 0:03:01]} Nxd5+ {[%emt 0:00:58]} 30. Rxd5 {[%emt 0:00:03]} b6 {[%emt 0:01:11]} 31. Rxc5 {[%emt 0:00:20]} Rxc5 {[%emt 0:00:09]} 32. Kd3 {[%emt 0:00:40]} Nc6 {[%emt 0:06:03]} 33. c3 {[%emt 0:03:53]} Rd5+ {[%emt 0:03:16]} 34. Ke3 {[%emt 0:02:32]} Ra5 {[%emt 0:03:43]} 35. Rc4 {[%emt 0:00:03]} Rc5 {[%emt 0:01:03]} 36. Rxc5 {[%emt 0:02:16]} bxc5 {[%emt 0:00:02]} 37. Kd3 {[%emt 0:00:11]} f6 {[%emt 0:00:36]} 38. Kc4 {[%emt 0:00:32]} Na5+ {[%emt 0:00:08]} 39. Kxc5 {[%emt 0:00:13]} Nxb3+ {[%emt 0:00:08]} 40. Kb6 {[%emt 0:01:06]} Nd2 {[%emt 0:04:55]} 41. Bg2 {[%emt 0:00:10]} Bf7 {[%emt 0:02:25]} 42. Ng1 {[%emt 0:01:45]} Nb1 {[%emt 0:00:00]} 43. Ne2 {[%emt 0:00:00]} Bc4 {[%emt 0:00:00]} 44. Bf3 {[%emt 0:00:00]} g6 {[%emt 0:00:00]} 45. Kc5 {[%emt 0:00:00]} Bxe2 {[%emt 0:00:00]} 46. Bxe2 {[%emt 0:00:00]} Nxc3 {[%emt 0:00:00]} 47. Bd3 {[%emt 0:00:00]} a5 {[%emt 0:00:00]} 48. h4 {[%emt 0:00:00]} Kg7 {[%emt 0:00:00]} 49. Kc4 {[%emt 0:00:00]} Nd1 {[%emt 0:00:00]} 50. Be2 {[%emt 0:00:00]} Nf2 {[%emt 0:00:00]} 51. Bf3 {[%emt 0:00:00]} Kh6 {[%emt 0:00:00]} 52. Kb5 {[%emt 0:00:00]} g5 {[%emt 0:00:00]} 53. Kxa5 {[%emt 0:00:00]} gxh4 {[%emt 0:00:46]} 54. gxh4 {[%emt 0:00:00]} Nd3 {[%emt 0:00:10]} 0-1

[Event "10th Amsterdam Science Park 2022"]
[Site "Amsterdam"]
[Date "2022.07.21"]
[Round "4.2"]
[White "Bosboom, Manuel"]
[Black "Schilstra, Laurens"]
[Result "1-0"]
[ECO "A50"]
[WhiteElo "2381"]
[BlackElo "1993"]
[Annotator "ChessBase"]
[PlyCount "89"]
[EventDate "2022.07.18"]
[EventCountry "NED"]
[SourceTitle "playchess.com"]
[Source "ChessBase"]
[SourceQuality "1"]
[TimeControl "5400+30"]

1. c4 {[%emt 0:11:47]} b6 {[%emt 0:02:24]} 2. d4 {[%emt 0:00:35]} Bb7 {[%emt 0:00:05]} 3. Nc3 {[%emt 0:00:17]} Nf6 {[%emt 0:00:10]} 4. d5 {[%emt 0:03:01]} e6 {[%emt 0:02:30]} 5. a3 {[%emt 0:01:42]} exd5 {[%emt 0:01:44]} 6. cxd5 {[%emt 0:00:14]} Bc5 {[%emt 0:00:22]} 7. g3 {[%emt 0:06:14]} O-O {[%emt 0:02:03]} 8. Bg2 {[%emt 0:00:16]} Re8 {[%emt 0:09:21]} 9. Nh3 {[%emt 0:04:21]} c6 {[%emt 0:05:26]} 10. d6 {[%emt 0:26:25]} Re6 {[%emt 0:00:55]} 11. Bf4 {[%emt 0:00:59]} Qf8 {[%emt 0:03:16]} 12. Ng5 {[%emt 0:04:20]} Rxd6 {[%emt 0:00:58]} 13. Bxd6 {[%emt 0:01:53]} Bxd6 {[%emt 0:00:38]} 14. O-O {[%emt 0:01:09]} Be5 {[%emt 0:03:15]} 15. Rc1 {[%emt 0:04:50]} d5 {[%emt 0:01:43]} 16. Nf3 {[%emt 0:02:54]} Bxc3 {[%emt 0:03:10]} 17. Rxc3 {[%emt 0:00:18]} Nbd7 {[%emt 0:01:40]} 18. b4 {[%emt 0:06:08]} Rd8 {[%emt 0:03:53]} 19. Qa4 {[%emt 0:01:44]} a5 {[%emt 0:04:34]} 20. Rb1 {[%emt 0:01:54]} axb4 {[%emt 0:04:07]} 21. axb4 {[%emt 0:00:16]} Qd6 {[%emt 0:02:54]} 22. Nd4 {[%emt 0:05:25]} Ne5 {[%emt 0:00:50]} 23. Qa7 {[%emt 0:01:23]} Qc7 {[%emt 0:06:01]} 24. Qa2 {[%emt 0:04:08]} Ne4 {[%emt 0:07:26]} 25. Rcc1 {[%emt 0:03:13]} Qe7 {[%emt 0:08:52]} 26. Nf5 {[%emt 0:00:37]} Qd7 {[%emt 0:02:32]} 27. Bxe4 {[%emt 0:00:33]} dxe4 {[%emt 0:00:06]} 28. Rd1 {[%emt 0:01:21]} Qxd1+ {[%emt 0:00:38]} 29. Rxd1 {[%emt 0:00:01]} Rxd1+ {[%emt 0:00:06]} 30. Kg2 {[%emt 0:00:01]} g6 {[%emt 0:03:11]} 31. Ne3 {[%emt 0:02:34]} Rd7 {[%emt 0:03:09]} 32. Qa7 {[%emt 0:00:24]} f6 {[%emt 0:00:29]} 33. Qxb6 {[%emt 0:00:10]} Kf7 {[%emt 0:01:33]} 34. g4 {[%emt 0:00:53]} Ke6 {[%emt 0:02:20]} 35. Kg3 {[%emt 0:00:43]} f5 {[%emt 0:01:44]} 36. h3 {[%emt 0:01:43]} h5 {[%emt 0:02:06]} 37. Qc5 {[%emt 0:00:54]} hxg4 {[%emt 0:02:22]} 38. hxg4 {[%emt 0:00:15]} Rf7 {[%emt 0:01:59]} 39. Ng2 {[%emt 0:02:11]} g5 {[%emt 0:00:58]} 40. gxf5+ {[%emt 0:00:39]} Rxf5 {[%emt 0:01:00]} 41. Ne3 {[%emt 0:01:01]} Rf7 {[%emt 0:02:18]} 42. Nc2 {[%emt 0:00:00]} Rd7 {[%emt 0:00:00]} 43. Nd4+ {[%emt 0:00:00]} Kf6 {[%emt 0:00:00]} 44. e3 {[%emt 0:00:00]} Bc8 {[%emt 0:00:00]} 45. Qf8+ {[%emt 0:00:00]} 1-0

[Event "10th Amsterdam Science Park 2022"]
[Site "Amsterdam"]
[Date "2022.07.21"]
[Round "4.3"]
[White "Zwirs, Nico"]
[Black "Van Arkel, Rogier"]
[Result "1-0"]
[ECO "B01"]
[WhiteElo "2485"]
[BlackElo "2187"]
[Annotator "ChessBase"]
[PlyCount "123"]
[EventDate "2022.07.18"]
[EventCountry "NED"]
[SourceTitle "playchess.com"]
[Source "ChessBase"]
[SourceQuality "1"]
[TimeControl "5400+30"]

1. e4 {[%emt 0:00:02]} d5 {[%emt 0:03:51]} 2. exd5 {[%emt 0:00:09]} Nf6 {[%emt 0:00:08]} 3. d4 {[%emt 0:00:30]} Bg4 {[%emt 0:02:43]} 4. Bb5+ {[%emt 0:01:24]} c6 {[%emt 0:03:27]} 5. dxc6 {[%emt 0:01:40]} Nxc6 {[%emt 0:00:07]} 6. Nf3 {[%emt 0:00:41]} Qb6 {[%emt 0:02:10]} 7. Bxc6+ {[%emt 0:14:51]} bxc6 {[%emt 0:01:42]} 8. Qd3 {[%emt 0:05:35]} e6 {[%emt 0:06:23]} 9. O-O {[%emt 0:03:06]} Rd8 {[%emt 0:10:02]} 10. Nbd2 {[%emt 0:07:08]} Be7 {[%emt 0:11:53]} 11. c3 {[%emt 0:07:36]} O-O {[%emt 0:03:36]} 12. Nc4 {[%emt 0:00:28]} Qc7 {[%emt 0:02:04]} 13. Nce5 {[%emt 0:09:35]} Bf5 {[%emt 0:05:50]} 14. Qc4 {[%emt 0:00:40]} Be4 {[%emt 0:02:15]} 15. b4 {[%emt 0:06:43]} h6 {[%emt 0:03:40]} 16. Nd2 {[%emt 0:05:16]} Bf5 {[%emt 0:07:35]} 17. Re1 {[%emt 0:11:10]} Bd6 {[%emt 0:03:07]} 18. h3 {[%emt 0:02:39]} Rc8 {[%emt 0:02:02]} 19. a4 {[%emt 0:02:19]} Nd5 {[%emt 0:03:53]} 20. a5 {[%emt 0:04:00]} Rfd8 {[%emt 0:04:20]} 21. Nb3 {[%emt 0:00:35]} Qe7 {[%emt 0:02:10]} 22. Bd2 {[%emt 0:01:12]} Qh4 {[%emt 0:01:19]} 23. Qe2 {[%emt 0:00:05]} Qe7 {[%emt 0:08:01]} 24. Qf3 {[%emt 0:01:19]} Bb8 {[%emt 0:01:28]} 25. Nc5 {[%emt 0:04:36]} f6 {[%emt 0:02:44]} 26. Nc4 {[%emt 0:01:37]} Qc7 {[%emt 0:02:23]} 27. g3 {[%emt 0:02:42]} Re8 {[%emt 0:00:54]} 28. Kg2 {[%emt 0:01:15]} Qf7 {[%emt 0:00:24]} 29. Na6 {[%emt 0:01:09]} Red8 {[%emt 0:00:43]} 30. Ne3 {[%emt 0:03:25]} Bg6 {[%emt 0:00:56]} 31. Nxb8 {[%emt 0:01:34]} Rxb8 {[%emt 0:00:04]} 32. Kh2 {[%emt 0:00:21]} Qc7 {[%emt 0:01:24]} 33. Qg4 {[%emt 0:00:25]} Qf7 {[%emt 0:00:25]} 34. Ng2 {[%emt 0:00:17]} Re8 {[%emt 0:00:33]} 35. Qf3 {[%emt 0:00:38]} Qd7 {[%emt 0:00:29]} 36. Nf4 {[%emt 0:00:58]} Bf5 {[%emt 0:01:12]} 37. Nd3 {[%emt 0:00:39]} e5 {[%emt 0:01:05]} 38. Nc5 {[%emt 0:00:11]} Qc8 {[%emt 0:00:14]} 39. dxe5 {[%emt 0:00:28]} fxe5 {[%emt 0:00:44]} 40. g4 {[%emt 0:00:34]} Bg6 {[%emt 0:00:23]} 41. Re2 {[%emt 0:00:00]} Re7 {[%emt 0:00:00]} 42. Rae1 {[%emt 0:00:00]} Qf8 {[%emt 0:00:00]} 43. Qxf8+ {[%emt 0:00:00]} Rxf8 {[%emt 0:00:00]} 44. c4 {[%emt 0:00:00]} Nf4 {[%emt 0:00:00]} 45. Rxe5 {[%emt 0:00:00]} Rxe5 {[%emt 0:00:00]} 46. Rxe5 {[%emt 0:00:00]} Nd3 {[%emt 0:00:00]} 47. Nxd3 {[%emt 0:00:00]} Bxd3 {[%emt 0:00:00]} 48. Be3 {[%emt 0:00:00]} a6 {[%emt 0:00:00]} 49. Rc5 {[%emt 0:00:00]} Rf6 {[%emt 0:00:00]} 50. Kg3 {[%emt 0:00:00]} Be4 {[%emt 0:00:00]} 51. b5 {[%emt 0:00:00]} Rf3+ {[%emt 0:02:45]} 52. Kh2 {[%emt 0:00:00]} cxb5 {[%emt 0:00:12]} 53. cxb5 {[%emt 0:00:00]} axb5 {[%emt 0:00:20]} 54. a6 {[%emt 0:00:00]} Rf6 {[%emt 0:02:20]} 55. a7 {[%emt 0:00:00]} Ra6 {[%emt 0:00:12]} 56. Rxb5 {[%emt 0:00:00]} g5 {[%emt 0:00:40]} 57. h4 {[%emt 0:00:00]} gxh4 {[%emt 0:01:03]} 58. Kh3 {[%emt 0:00:00]} Ra1 {[%emt 0:00:33]} 59. Kxh4 {[%emt 0:00:00]} Kh7 {[%emt 0:00:47]} 60. Re5 {[%emt 0:00:00]} Bf3 {[%emt 0:01:41]} 61. Kg3 {[%emt 0:00:00]} Bh1 {[%emt 0:00:17]} 62. f3 {[%emt 0:00:00]} 1-0

[Event "10th Amsterdam Science Park 2022"]
[Site "Amsterdam"]
[Date "2022.07.21"]
[Round "4.4"]
[White "Kumar, Prajit Sai"]
[Black "Blom, Vincent"]
[Result "1/2-1/2"]
[ECO "D03"]
[WhiteElo "2040"]
[BlackElo "2325"]
[Annotator "ChessBase"]
[PlyCount "105"]
[EventDate "2022.07.18"]
[EventCountry "NED"]
[SourceTitle "playchess.com"]
[Source "ChessBase"]
[SourceQuality "1"]
[TimeControl "5400+30"]

1. d4 {[%emt 0:00:03]} Nf6 {[%emt 0:05:09]} 2. Nf3 {[%emt 0:00:06]} g6 {[%emt 0:00:57]} 3. Bg5 {[%emt 0:00:09]} Bg7 {[%emt 0:00:38]} 4. Nbd2 {[%emt 0:00:08]} d5 {[%emt 0:07:20]} 5. e3 {[%emt 0:00:13]} O-O {[%emt 0:03:53]} 6. Be2 {[%emt 0:00:25]} c5 {[%emt 0:07:02]} 7. c3 {[%emt 0:01:01]} Qb6 {[%emt 0:01:22]} 8. Qb3 {[%emt 0:01:19]} Nc6 {[%emt 0:09:34]} 9. O-O {[%emt 0:00:46]} Bf5 {[%emt 0:02:45]} 10. h3 {[%emt 0:01:20]} h6 {[%emt 0:09:47]} 11. Bf4 {[%emt 0:02:01]} g5 {[%emt 0:03:37]} 12. Bh2 {[%emt 0:04:40]} c4 {[%emt 0:02:46]} 13. Qa3 {[%emt 0:05:42]} Qd8 {[%emt 0:13:41]} 14. b3 {[%emt 0:05:15]} b5 {[%emt 0:00:30]} 15. bxc4 {[%emt 0:33:27]} bxc4 {[%emt 0:02:46]} 16. Bd1 {[%emt 0:08:01]} a6 {[%emt 0:04:08]} 17. Qb2 {[%emt 0:03:21]} Bd3 {[%emt 0:06:53]} 18. Re1 {[%emt 0:00:12]} Ne4 {[%emt 0:00:23]} 19. Be2 {[%emt 0:07:34]} Qa5 {[%emt 0:07:44]} 20. Rac1 {[%emt 0:06:34]} Qb5 {[%emt 0:02:46]} 21. Qa3 {[%emt 0:02:52]} Qa5 {[%emt 0:00:03]} 22. Qb2 {[%emt 0:01:07]} e5 {[%emt 0:02:09]} 23. Bxd3 {[%emt 0:03:28]} cxd3 {[%emt 0:00:16]} 24. dxe5 {[%emt 0:01:13]} Qb5 {[%emt 0:02:30]} 25. Qa3 {[%emt 0:02:43]} Qa5 {[%emt 0:00:54]} 26. Qb2 {[%emt 0:01:12]} Rab8 {[%emt 0:01:26]} 27. Nb3 {[%emt 0:01:06]} Qa4 {[%emt 0:00:35]} 28. Red1 {[%emt 0:01:21]} Nc5 {[%emt 0:00:59]} 29. Nxc5 {[%emt 0:00:35]} Qxd1+ {[%emt 0:00:11]} 30. Rxd1 {[%emt 0:00:05]} Rxb2 {[%emt 0:00:03]} 31. Nxa6 {[%emt 0:00:51]} Ra8 {[%emt 0:01:45]} 32. Nc7 {[%emt 0:00:35]} Ra5 {[%emt 0:00:50]} 33. Bg3 {[%emt 0:00:44]} Rb7 {[%emt 0:00:39]} 34. Ne8 {[%emt 0:00:20]} Rxa2 {[%emt 0:00:25]} 35. Kh2 {[%emt 0:01:39]} d2 {[%emt 0:00:47]} 36. Nxg7 {[%emt 0:01:02]} Kxg7 {[%emt 0:00:27]} 37. Nxd2 {[%emt 0:00:18]} Ra4 {[%emt 0:00:38]} 38. Nf3 {[%emt 0:01:55]} Ne7 {[%emt 0:00:20]} 39. h4 {[%emt 0:03:11]} Kg6 {[%emt 0:00:35]} 40. Rd4 {[%emt 0:00:51]} Ra1 {[%emt 0:00:42]} 41. hxg5 {[%emt 0:00:47]} Rbb1 {[%emt 0:00:00]} 42. Kh3 {[%emt 0:00:00]} Rh1+ {[%emt 0:00:00]} 43. Kg4 {[%emt 0:00:00]} hxg5 {[%emt 0:00:00]} 44. Nxg5 {[%emt 0:00:00]} Nf5 {[%emt 0:00:00]} 45. Rxd5 {[%emt 0:00:00]} Ra4+ {[%emt 0:00:00]} 46. e4 {[%emt 0:00:00]} Rh5 {[%emt 0:00:00]} 47. Bf4 {[%emt 0:00:00]} Nh6+ {[%emt 0:00:58]} 48. Kf3 {[%emt 0:00:00]} Rxg5 {[%emt 0:00:19]} 49. Rd6+ {[%emt 0:00:00]} Kh5 {[%emt 0:00:10]} 50. Bxg5 {[%emt 0:00:47]} Kxg5 {[%emt 0:00:06]} 51. e6 {[%emt 0:00:57]} f5 {[%emt 0:00:42]} 52. exf5 {[%emt 0:00:39]} Nxf5 {[%emt 0:00:47]} 53. Rc6 {[%emt 0:04:25]} 1/2-1/2

[Event "10th Amsterdam Science Park 2022"]
[Site "Amsterdam"]
[Date "2022.07.21"]
[Round "4.5"]
[White "De Winter, Arthur"]
[Black "Bruil, Rembrandt"]
[Result "1/2-1/2"]
[ECO "B36"]
[WhiteElo "2150"]
[BlackElo "2204"]
[Annotator "ChessBase"]
[PlyCount "40"]
[EventDate "2022.07.18"]
[EventCountry "NED"]
[SourceTitle "playchess.com"]
[Source "ChessBase"]
[SourceQuality "1"]
[TimeControl "5400+30"]

1. e4 {[%emt 0:00:03]} c5 {[%emt 0:00:04]} 2. Nf3 {[%emt 0:00:04]} Nc6 {[%emt 0:00:06]} 3. d4 {[%emt 0:00:04]} cxd4 {[%emt 0:00:09]} 4. Nxd4 {[%emt 0:00:04]} g6 {[%emt 0:00:07]} 5. c4 {[%emt 0:00:07]} Nf6 {[%emt 0:00:05]} 6. Nc3 {[%emt 0:00:04]} Nxd4 7. Qxd4 {[%emt 0:00:04]} d6 {[%emt 0:00:11]} 8. f3 {[%emt 0:00:12]} Bg7 {[%emt 0:00:05]} 9. Be3 {[%emt 0:00:05]} O-O {[%emt 0:00:05]} 10. Qd2 {[%emt 0:00:05]} Be6 {[%emt 0:01:23]} 11. Rc1 {[%emt 0:00:45]} Qa5 {[%emt 0:03:32]} 12. b3 {[%emt 0:01:46]} a6 {[%emt 0:07:55]} 13. Na4 {[%emt 0:02:04]} Qxd2+ {[%emt 0:00:19]} 14. Kxd2 {[%emt 0:01:36]} Nd7 {[%emt 0:03:57]} 15. Be2 {[%emt 0:17:42]} Rfb8 {[%emt 0:13:54]} 16. Nc3 {[%emt 0:04:22]} Rc8 {[%emt 0:02:32]} 17. g4 {[%emt 0:23:59]} b5 {[%emt 0:15:22]} 18. Nd5 {[%emt 0:09:24]} Bxd5 {[%emt 0:00:07]} 19. cxd5 {[%emt 0:01:57]} Bb2 {[%emt 0:13:13]} 20. Rb1 {[%emt 0:14:37]} Bc3+ {[%emt 0:01:09]} 1/2-1/2

[Event "10th Amsterdam Science Park 2022"]
[Site "Amsterdam"]
[Date "2022.07.21"]
[Round "4.6"]
[White "De Groote, Ewoud"]
[Black "Duchene, Rene"]
[Result "1/2-1/2"]
[ECO "C11"]
[WhiteElo "2245"]
[BlackElo "2137"]
[Annotator "ChessBase"]
[PlyCount "50"]
[EventDate "2022.07.18"]
[EventCountry "NED"]
[SourceTitle "playchess.com"]
[Source "ChessBase"]
[SourceQuality "1"]
[TimeControl "5400+30"]

1. e4 {[%emt 0:00:05]} e6 {[%emt 0:00:11]} 2. d4 {[%emt 0:00:05]} d5 {[%emt 0:00:02]} 3. Nc3 {[%emt 0:00:09]} Nf6 {[%emt 0:00:15]} 4. e5 {[%emt 0:00:19]} Nfd7 {[%emt 0:00:11]} 5. Nce2 {[%emt 0:01:09]} c5 {[%emt 0:00:19]} 6. c3 {[%emt 0:00:04]} Nc6 {[%emt 0:00:08]} 7. Nf3 {[%emt 0:00:52]} Be7 {[%emt 0:01:46]} 8. a3 {[%emt 0:03:39]} a5 {[%emt 0:06:20]} 9. a4 {[%emt 0:06:13]} O-O {[%emt 0:02:47]} 10. Nf4 {[%emt 0:04:16]} cxd4 {[%emt 0:01:37]} 11. cxd4 {[%emt 0:00:15]} Nb4 {[%emt 0:00:34]} 12. Bd2 {[%emt 0:16:17]} Nb8 {[%emt 0:00:20]} 13. h4 {[%emt 0:04:01]} N8c6 {[%emt 0:01:18]} 14. g3 {[%emt 0:31:21]} f6 {[%emt 0:10:38]} 15. exf6 {[%emt 0:04:08]} gxf6 {[%emt 0:07:14]} 16. Bc3 {[%emt 0:11:25]} Re8 {[%emt 0:29:06]} 17. Be2 {[%emt 0:07:38]} Bf8 {[%emt 0:02:04]} 18. O-O {[%emt 0:01:26]} e5 {[%emt 0:01:28]} 19. Ng2 {[%emt 0:00:34]} e4 {[%emt 0:02:15]} 20. Nfe1 {[%emt 0:00:26]} Bh6 {[%emt 0:02:55]} 21. Bd2 {[%emt 0:00:32]} Bg7 {[%emt 0:00:35]} 22. Be3 {[%emt 0:00:11]} Be6 {[%emt 0:02:34]} 23. Kh2 {[%emt 0:00:22]} f5 {[%emt 0:00:37]} 24. Qd2 {[%emt 0:00:40]} Qf6 {[%emt 0:02:00]} 25. Rd1 {[%emt 0:00:21]} Rac8 {[%emt 0:02:25]} 1/2-1/2

[Event "10th Amsterdam Science Park 2022"]
[Site "Amsterdam"]
[Date "2022.07.21"]
[Round "4.7"]
[White "Labruyere, Roger"]
[Black "Van der Poel, Henk"]
[Result "0-1"]
[ECO "B52"]
[WhiteElo "2070"]
[BlackElo "2210"]
[Annotator "ChessBase"]
[PlyCount "64"]
[EventDate "2022.07.18"]
[EventCountry "NED"]
[SourceTitle "playchess.com"]
[Source "ChessBase"]
[SourceQuality "1"]
[TimeControl "5400+30"]

1. e4 {[%emt 0:00:03]} c5 {[%emt 0:00:19]} 2. Nf3 {[%emt 0:00:04]} d6 {[%emt 0:00:29]} 3. Bb5+ {[%emt 0:00:07]} Bd7 {[%emt 0:00:36]} 4. Bxd7+ {[%emt 0:00:06]} Nxd7 {[%emt 0:00:36]} 5. c4 {[%emt 0:00:21]} Ngf6 {[%emt 0:00:31]} 6. Nc3 {[%emt 0:00:05]} g6 {[%emt 0:04:19]} 7. O-O {[%emt 0:00:26]} Bg7 {[%emt 0:00:09]} 8. Qe2 {[%emt 0:04:49]} O-O {[%emt 0:06:32]} 9. Rd1 {[%emt 0:01:18]} a6 {[%emt 0:12:03]} 10. d4 {[%emt 0:02:18]} cxd4 {[%emt 0:00:17]} 11. Nxd4 {[%emt 0:00:04]} Rc8 {[%emt 0:00:13]} 12. a4 {[%emt 0:04:33]} Qa5 {[%emt 0:03:08]} 13. Bd2 {[%emt 0:08:36]} Qc5 {[%emt 0:02:21]} 14. Nc2 {[%emt 0:21:50]} Qxc4 {[%emt 0:02:47]} 15. Qxc4 {[%emt 0:00:47]} Rxc4 {[%emt 0:00:04]} 16. Ne3 {[%emt 0:00:13]} Rc6 {[%emt 0:12:33]} 17. b4 {[%emt 0:06:13]} Rfc8 {[%emt 0:01:58]} 18. b5 {[%emt 0:07:50]} Rxc3 {[%emt 0:05:52]} 19. Bxc3 {[%emt 0:00:13]} Rxc3 {[%emt 0:00:05]} 20. bxa6 {[%emt 0:01:07]} bxa6 {[%emt 0:00:05]} 21. Rab1 {[%emt 0:00:13]} Bf8 {[%emt 0:05:09]} 22. Nd5 {[%emt 0:16:59]} Nxd5 {[%emt 0:11:49]} 23. exd5 {[%emt 0:01:42]} Nc5 {[%emt 0:01:36]} 24. Ra1 {[%emt 0:02:41]} a5 {[%emt 0:03:02]} 25. Rdc1 {[%emt 0:06:01]} Rd3 {[%emt 0:04:12]} 26. Rd1 {[%emt 0:05:17]} Rxd1+ {[%emt 0:03:24]} 27. Rxd1 {[%emt 0:00:01]} Bg7 {[%emt 0:00:09]} 28. Rc1 {[%emt 0:03:01]} Bb2 {[%emt 0:00:13]} 29. Rc2 {[%emt 0:01:18]} Nxa4 {[%emt 0:03:45]} 30. Kf1 {[%emt 0:00:19]} Bc3 {[%emt 0:00:13]} 31. Ke2 {[%emt 0:00:18]} Bb4 {[%emt 0:00:25]} 32. Kd3 {[%emt 0:00:07]} Nb6 {[%emt 0:01:11]} 0-1